fUST/lending_fUST_20250409
["ID","MTS","AMOUNT","RATE_DAILY","PERIOD"]
[357569536,1744181432798,-725.08292509,0.00018081,2]
[357569538,1744181432808,-300.0,0.00018264,2]
[357569540,1744181432818,-539.55816092,0.00018265,2]
[357569555,1744181433478,-273.95575854,0.00018265,2]
[357569568,1744181438860,-11708.21145703,0.00018265,2]
[357569569,1744181438870,-500.0,0.0001832,2]
[357569570,1744181438880,-422.67699758,0.0001832,2]
[357569571,1744181438889,-500.0,0.0001832,2]
[357569572,1744181438898,-500.0,0.0001832,2]
[357569573,1744181438908,-500.0,0.0001832,2]
[357569574,1744181438918,-500.0,0.0001832,2]
[357569575,1744181438928,-500.0,0.0001832,2]
[357569576,1744181438937,-500.0,0.0001832,2]
[357569577,1744181438946,-500.0,0.0001832,2]
[357569578,1744181438956,-532.42039985,0.0001832,2]
[357569579,1744181438966,-500.0,0.0001832,2]
[357569580,1744181438976,-500.0,0.0001832,2]
[357569581,1744181438986,-500.0,0.0001832,2]
[357569582,1744181438995,-409.57641901,0.0001832,2]
[357569583,1744181439006,-500.0,0.0001832,2]
[357569584,1744181439015,-500.0,0.0001832,2]
[357569585,1744181439025,-500.0,0.0001832,2]
[357569586,1744181439035,-500.0,0.0001832,2]
[357569587,1744181439044,-500.0,0.0001832,2]
[357569588,1744181439053,-500.0,0.0001832,2]
[357569589,1744181439063,-500.0,0.0001832,2]
[357569590,1744181439072,-500.0,0.0001832,2]
[357569591,1744181439084,-500.0,0.0001832,2]
[357569592,1744181439095,-500.0,0.0001832,2]
[357569593,1744181439107,-500.0,0.0001832,2]
[357569594,1744181439117,-500.0,0.0001832,2]
[357569595,1744181439128,-500.0,0.0001832,2]
[357569596,1744181439139,-21429.56316221,0.00018321,2]
[357569597,1744181439148,-250.0,0.00018321,2]
[357569598,1744181439159,-412.64344204,0.00018816,2]
[357569599,1744181439169,-3061.5289786,0.00019,2]
[357569600,1744181439179,-332.36739833,0.00019078,2]
[357569601,1744181439189,-332.36739831,0.00019129,2]
[357569602,1744181439199,-504.94411916,0.00019173,2]
[357569603,1744181439209,-500.0,0.00019173,2]
[357569604,1744181439220,-500.0,0.00019173,2]
[357569605,1744181439231,-500.0,0.00019177,2]
[357569606,1744181439242,-351.52173074,0.00019177,2]
[357569607,1744181439252,-1357.81128761,0.00019178,2]
[357569608,1744181439262,-602.35313532,0.00019178,3]
[357569609,1744181439272,-500.0,0.00019178,2]
[357569610,1744181439283,-3460.34,0.00019178,2]
[357569611,1744181439292,-500.0,0.00019178,2]
[357569612,1744181439303,-514.45077381,0.00019178,2]
[357569613,1744181439313,-500.0,0.00019178,2]
[357569614,1744181439323,-500.0,0.00019178,2]
[357569615,1744181439334,-500.0,0.00019178,2]
[357569616,1744181439343,-500.0,0.00019178,2]
[357569617,1744181439354,-506.15,0.00019178,2]
[357569618,1744181439363,-500.0,0.00019178,2]
[357569619,1744181439373,-500.0,0.00019178,2]
[357569620,1744181439383,-500.0,0.00019178,2]
[357569621,1744181439393,-500.0,0.00019178,2]
[357569622,1744181439402,-500.0,0.00019178,2]
[357569623,1744181439415,-500.0,0.00019178,2]
[357569624,1744181439426,-500.0,0.00019178,2]
[357569625,1744181439435,-500.0,0.00019178,2]
[357569626,1744181439446,-500.0,0.00019178,2]
[357569627,1744181439456,-500.0,0.00019178,2]
[357569628,1744181439466,-505.63,0.00019178,2]
[357569629,1744181439475,-500.0,0.00019178,2]
[357569630,1744181439485,-500.0,0.00019178,2]
[357569631,1744181439495,-500.0,0.00019178,2]
[357569632,1744181439504,-500.0,0.00019178,2]
[357569633,1744181439514,-500.0,0.00019178,2]
[357569634,1744181439523,-500.0,0.00019178,2]
[357569635,1744181439534,-500.0,0.00019178,2]
[357569636,1744181439544,-500.0,0.00019178,2]
[357569637,1744181439554,-514.68080071,0.00019178,2]
[357569638,1744181439564,-2840.72,0.00019178,2]
[357569639,1744181439574,-500.0,0.00019178,2]
[357569640,1744181439584,-992.4,0.00019178,2]
[357569641,1744181439594,-500.0,0.00019178,2]
[357569642,1744181439605,-534.38096237,0.00019178,2]
[357569643,1744181439614,-2456.33,0.00019178,2]
[357569644,1744181439625,-1446.218721,0.00019178,2]
[357569645,1744181439635,-1446.218721,0.00019178,2]
[357569646,1744181439644,-1446.218721,0.00019178,2]
[357569647,1744181439654,-1446.218721,0.00019178,2]
[357569648,1744181439668,-500.0,0.00019178,2]
[357569649,1744181439677,-500.0,0.00019178,2]
[357569650,1744181439687,-829.48,0.00019178,2]
[357569651,1744181439697,-599.66698499,0.00019178,2]
[357569652,1744181439706,-500.0,0.00019178,2]
[357569653,1744181439716,-500.0,0.00019178,2]
[357569654,1744181439726,-500.0,0.00019178,2]
[357569655,1744181439735,-542.52239618,0.00019178,2]
[357569656,1744181439745,-500.0,0.00019178,2]
[357569657,1744181439754,-500.0,0.00019178,2]
[357569658,1744181439764,-500.0,0.00019178,2]
[357569659,1744181439774,-500.0,0.00019178,2]
[357569660,1744181439784,-523.51340128,0.00019178,2]
[357569661,1744181439794,-500.0,0.00019178,2]
[357569662,1744181439803,-604.44940816,0.00019178,2]
[357569663,1744181439812,-500.0,0.00019178,2]
[357569664,1744181439822,-500.0,0.00019178,2]
[357569665,1744181439832,-500.0,0.00019178,2]
[357569666,1744181439841,-500.0,0.00019178,2]
[357569667,1744181439851,-511.66894152,0.00019178,2]
[357569668,1744181439861,-503.58026192,0.00019178,2]
[357569669,1744181439870,-499.99650321,0.00019178,2]
[357569670,1744181439880,-502.21685024,0.00019178,2]
[357569671,1744181439890,-500.0,0.00019178,2]
[357569672,1744181439900,-542.86071687,0.00019178,2]
[357569673,1744181439911,-506.44351539,0.00019178,2]
[357569674,1744181439921,-500.0,0.00019178,2]
[357569675,1744181439931,-503.89861588,0.00019178,2]
[357569676,1744181439941,-500.0,0.00019178,2]
[357569677,1744181439951,-504.96055104,0.00019178,2]
[357569678,1744181439961,-500.0,0.00019178,2]
[357569679,1744181439971,-511.20166024,0.00019178,2]
[357569680,1744181439981,-507.51904552,0.00019178,2]
[357569681,1744181439991,-541.7739651,0.00019178,2]
[357569682,1744181440009,-501.59105255,0.00019178,2]
[357569683,1744181440022,-500.0,0.00019178,2]
[357569684,1744181440178,-500.57898513,0.00019178,2]
[357569685,1744181440194,-532.07379932,0.00019178,2]
[357569686,1744181440204,-500.0,0.00019178,2]
[357569687,1744181440214,-500.0,0.00019178,2]
[357569688,1744181440224,-500.0,0.00019178,2]
[357569690,1744181440234,-500.0,0.00019178,2]
[357569691,1744181440244,-500.0,0.00019178,2]
[357569692,1744181440254,-500.0,0.00019178,2]
[357569693,1744181440264,-500.0,0.00019178,2]
[357569694,1744181440273,-500.0,0.00019178,2]
[357569695,1744181440283,-500.0,0.00019178,2]
[357569696,1744181440292,-500.0,0.00019178,2]
[357569698,1744181440302,-500.0,0.00019178,2]
[357569700,1744181440312,-500.0,0.00019178,2]
[357569701,1744181440322,-500.0,0.00019178,2]
[357569703,1744181440331,-500.0,0.00019178,2]
[357569705,1744181440341,-500.0,0.00019178,2]
[357569707,1744181440351,-500.0,0.00019178,2]
[357569708,1744181440361,-500.0,0.00019178,2]
[357569710,1744181440371,-500.0,0.00019178,2]
[357569711,1744181440381,-500.0,0.00019178,2]
[357569712,1744181440391,-500.0,0.00019178,2]
[357569713,1744181440402,-1565.88,0.00019178,2]
[357569714,1744181440414,-500.0,0.00019178,2]
[357569715,1744181440424,-500.0,0.00019178,2]
[357569716,1744181440434,-500.0,0.00019178,2]
[357569718,1744181440445,-503.79131204,0.00019178,2]
[357569720,1744181440455,-2002.4,0.00019178,2]
[357569722,1744181440465,-500.0,0.00019178,2]
[357569724,1744181440476,-500.0,0.00019178,2]
[357569726,1744181440486,-500.0,0.00019178,2]
[357569728,1744181440496,-500.0,0.00019178,2]
[357569729,1744181440506,-500.0,0.00019178,2]
[357569730,1744181440516,-500.0,0.00019178,2]
[357569731,1744181440526,-500.0,0.00019178,2]
[357569732,1744181440536,-500.0,0.00019178,2]
[357569733,1744181440546,-500.0,0.00019178,2]
[357569734,1744181440556,-500.0,0.00019178,2]
[357569735,1744181440566,-500.0,0.00019178,2]
[357569736,1744181440576,-715.76,0.00019178,2]
[357569737,1744181440586,-938.94,0.00019178,2]
[357569738,1744181440595,-500.0,0.00019178,2]
[357569739,1744181440605,-500.0,0.00019178,2]
[357569740,1744181440615,-504.05717989,0.00019178,2]
[357569741,1744181440624,-2113.49,0.00019178,2]
[357569742,1744181440634,-500.0,0.00019178,2]
[357569743,1744181440643,-500.0,0.00019178,2]
[357569744,1744181440653,-500.0,0.00019178,2]
[357569745,1744181440664,-500.0,0.00019178,2]
[357569746,1744181440673,-166.59823826,0.00019178,2]
[357569747,1744181440683,-500.0,0.00019178,2]
[357569748,1744181440693,-500.0,0.00019178,2]
[357569749,1744181440703,-500.0,0.00019178,2]
[357569750,1744181440713,-521.71200463,0.00019178,2]
[357569751,1744181440723,-500.0,0.00019178,2]
[357569752,1744181440732,-500.0,0.00019178,2]
[357569753,1744181440743,-379.82522929,0.00019178,2]
[357569754,1744181440752,-3212.9,0.00019178,2]
[357569755,1744181440762,-151.0,0.00019178,2]
[357569756,1744181440771,-151.0,0.00019178,2]
[357569757,1744181440781,-151.0,0.00019178,2]
[357569758,1744181440791,-151.0,0.00019178,2]
[357569759,1744181440800,-151.0,0.00019178,2]
[357569760,1744181440810,-151.0,0.00019178,2]
[357569761,1744181440819,-151.0,0.00019178,2]
[357569762,1744181440828,-151.0,0.00019178,2]
[357569763,1744181440838,-213.160646,0.00019178,2]
[357569764,1744181440847,-1024.08,0.00019178,2]
[357569765,1744181440857,-500.0,0.00019178,2]
[357569766,1744181440867,-500.0,0.00019178,2]
[357569767,1744181440876,-501.9700047,0.00019178,2]
[357569768,1744181440886,-500.0,0.00019178,2]
[357569769,1744181440896,-500.0,0.00019178,2]
[357569770,1744181440906,-500.0,0.00019178,2]
[357569771,1744181440916,-500.0,0.00019178,2]
[357569772,1744181440926,-500.0,0.00019178,2]
[357569773,1744181440935,-500.0,0.00019178,2]
[357569774,1744181440945,-500.0,0.00019178,2]
[357569775,1744181440955,-500.0,0.00019178,2]
[357569776,1744181440964,-1542.66,0.00019178,2]
[357569777,1744181440974,-500.0,0.00019178,2]
[357569778,1744181440984,-500.0,0.00019178,2]
[357569779,1744181440994,-500.0,0.00019178,2]
[357569780,1744181441003,-620.47,0.00019178,2]
[357569781,1744181441013,-500.0,0.00019178,2]
[357569782,1744181441023,-500.0,0.00019178,2]
[357569783,1744181441032,-500.0,0.00019178,2]
[357569784,1744181441041,-500.0,0.00019178,2]
[357569785,1744181441051,-2100.51,0.00019178,2]
[357569786,1744181441061,-500.0,0.00019178,2]
[357569787,1744181441071,-1072.42,0.00019178,2]
[357569788,1744181441080,-500.0,0.00019178,2]
[357569789,1744181441090,-500.0,0.00019178,2]
[357569790,1744181441101,-500.0,0.00019178,2]
[357569791,1744181441111,-500.0,0.00019178,2]
[357569792,1744181441121,-500.0,0.00019178,2]
[357569793,1744181441130,-500.0,0.00019178,2]
[357569794,1744181441142,-500.0,0.00019178,2]
[357569795,1744181441152,-500.0,0.00019178,2]
[357569796,1744181441163,-213.01508357,0.00019178,2]
[357569797,1744181441172,-500.0,0.00019178,2]
[357569798,1744181441184,-500.0,0.00019178,2]
[357569799,1744181441194,-500.0,0.00019178,2]
[357569800,1744181441203,-500.0,0.00019178,2]
[357569801,1744181441213,-171.92859642,0.00019178,2]
[357569802,1744181441222,-500.0,0.00019178,2]
[357569803,1744181441232,-273.53373865,0.00019178,2]
[357569804,1744181441241,-500.0,0.00019178,2]
[357569805,1744181441251,-500.0,0.00019178,2]
[357569806,1744181441260,-500.0,0.00019178,2]
[357569807,1744181441270,-500.0,0.00019178,2]
[357569808,1744181441279,-500.0,0.00019178,2]
[357569809,1744181441289,-501.7460648,0.00019178,2]
[357569810,1744181441299,-6509.7,0.00019178,2]
[357569811,1744181441308,-500.0,0.00019178,2]
[357569812,1744181441318,-500.0,0.00019178,2]
[357569813,1744181441327,-500.0,0.00019178,2]
[357569814,1744181441336,-500.0,0.00019178,2]
[357569815,1744181441346,-500.0,0.00019178,2]
[357569816,1744181441355,-500.0,0.00019178,2]
[357569817,1744181441364,-500.0,0.00019178,2]
[357569818,1744181441374,-500.0,0.00019178,2]
[357569819,1744181441383,-151.0,0.00019178,2]
[357569820,1744181441392,-151.0,0.00019178,2]
[357569821,1744181441402,-151.0,0.00019178,2]
[357569822,1744181441411,-739.29,0.00019178,2]
[357569823,1744181441421,-151.0,0.00019178,2]
[357569824,1744181441430,-151.0,0.00019178,2]
[357569825,1744181441439,-500.0,0.00019178,2]
[357569826,1744181441449,-151.0,0.00019178,2]
[357569827,1744181441459,-151.0,0.00019178,2]
[357569828,1744181441468,-151.0,0.00019178,2]
[357569829,1744181441478,-151.0,0.00019178,2]
[357569830,1744181441487,-151.0,0.00019178,2]
[357569831,1744181441497,-500.0,0.00019178,2]
[357569832,1744181441507,-151.0,0.00019178,2]
[357569833,1744181441517,-151.0,0.00019178,2]
[357569834,1744181441526,-151.0,0.00019178,2]
[357569835,1744181441536,-151.0,0.00019178,2]
[357569836,1744181441545,-502.91632429,0.00019178,2]
[357569838,1744181441555,-204.155107,0.00019178,2]
[357569839,1744181441565,-505.66261535,0.00019178,2]
[357569840,1744181441574,-500.0,0.00019178,2]
[357569841,1744181441584,-921.15,0.00019178,2]
[357569842,1744181441594,-1433.44,0.00019178,2]
[357569844,1744181441603,-500.0,0.00019178,2]
[357569845,1744181441613,-500.0,0.00019178,2]
[357569846,1744181441622,-500.0,0.00019178,2]
[357569847,1744181441632,-500.0,0.00019178,2]
[357569849,1744181441642,-500.0,0.00019178,2]
[357569850,1744181441651,-987.49,0.00019178,2]
[357569851,1744181441662,-500.0,0.00019178,2]
[357569852,1744181441671,-500.0,0.00019178,2]
[357569854,1744181441680,-1429.35,0.00019178,2]
[357569855,1744181441690,-408.573606,0.00019178,2]
[357569856,1744181441699,-500.0,0.00019178,2]
[357569857,1744181441708,-408.573606,0.00019178,2]
[357569859,1744181441718,-408.573606,0.00019178,2]
[357569860,1744181441727,-408.573606,0.00019178,2]
[357569861,1744181441737,-408.573606,0.00019178,2]
[357569862,1744181441747,-408.573606,0.00019178,2]
[357569864,1744181441757,-1020.52,0.00019178,2]
[357569865,1744181441766,-408.573606,0.00019178,2]
[357569866,1744181441775,-500.0,0.00019178,2]
[357569867,1744181441785,-408.573606,0.00019178,2]
[357569869,1744181441794,-408.573606,0.00019178,2]
[357569870,1744181441804,-1897.78,0.00019178,2]
[357569871,1744181441814,-408.573606,0.00019178,2]
[357569872,1744181441823,-408.573606,0.00019178,2]
[357569873,1744181441833,-604.72024405,0.00019178,2]
[357569877,1744181441919,-408.573606,0.00019178,2]
[357569878,1744181441940,-1120.78,0.00019178,2]
[357569879,1744181441950,-408.573606,0.00019178,2]
[357569881,1744181441960,-408.573606,0.00019178,2]
[357569882,1744181441969,-408.573606,0.00019178,2]
[357569883,1744181441978,-408.573606,0.00019178,2]
[357569884,1744181441988,-408.573606,0.00019178,2]
[357569886,1744181441998,-408.573606,0.00019178,2]
[357569887,1744181442008,-500.0,0.00019178,2]
[357569888,1744181442017,-408.573606,0.00019178,2]
[357569889,1744181442027,-408.57360766,0.00019178,2]
[357569890,1744181442036,-518.38677414,0.00019178,2]
[357569892,1744181442046,-500.0,0.00019178,2]
[357569893,1744181442055,-799.27,0.00019178,2]
[357569894,1744181442064,-500.0,0.00019178,2]
[357569895,1744181442074,-500.0,0.00019178,2]
[357569896,1744181442083,-500.0,0.00019178,2]
[357569898,1744181442095,-1762.02,0.00019178,2]
[357569899,1744181442105,-519.99363014,0.00019178,2]
[357569900,1744181442115,-500.0,0.00019178,2]
[357569901,1744181442124,-500.0,0.00019178,2]
[357569902,1744181442135,-505.69822207,0.00019178,2]
[357569904,1744181442145,-501.30976704,0.00019178,2]
[357569905,1744181442155,-552.15177822,0.00019178,2]
[357569906,1744181442164,-500.0,0.00019178,2]
[357569907,1744181442176,-500.0,0.00019178,2]
[357569909,1744181442186,-500.0,0.00019178,2]
[357569910,1744181442195,-500.0,0.00019178,2]
[357569911,1744181442205,-838.5,0.00019178,2]
[357569912,1744181442214,-1130.85,0.00019178,2]
[357569913,1744181442223,-507.38359569,0.00019178,2]
[357569915,1744181442233,-500.0,0.00019178,2]
[357569916,1744181442243,-1158.5,0.00019178,2]
[357569917,1744181442252,-508.3531345,0.00019178,2]
[357569918,1744181442262,-500.0,0.00019178,2]
[357569919,1744181442271,-265.82133574,0.00019178,2]
[357569921,1744181442281,-500.0,0.00019178,2]
[357569922,1744181442290,-500.0,0.00019178,2]
[357569923,1744181442300,-500.0,0.00019178,2]
[357569924,1744181442309,-505.26586802,0.00019178,2]
[357569926,1744181442319,-500.0,0.00019178,2]
[357569927,1744181442329,-500.0,0.00019178,2]
[357569928,1744181442340,-500.0,0.00019178,2]
[357569929,1744181442349,-500.0,0.00019178,2]
[357569930,1744181442359,-500.0,0.00019178,2]
[357569932,1744181442368,-357.82742829,0.00019178,2]
[357569933,1744181442378,-500.0,0.00019178,2]
[357569934,1744181442387,-500.0,0.00019178,2]
[357569935,1744181442397,-3005.67,0.00019178,2]
[357569936,1744181442407,-500.0,0.00019178,2]
[357569938,1744181442417,-3005.67,0.00019178,2]
[357569939,1744181442426,-3005.67,0.00019178,2]
[357569940,1744181442435,-500.0,0.00019178,2]
[357569941,1744181442445,-500.0,0.00019178,2]
[357569942,1744181442454,-500.0,0.00019178,2]
[357569944,1744181442463,-500.0,0.00019178,2]
[357569945,1744181442473,-500.0,0.00019178,2]
[357569946,1744181442483,-558.21,0.00019178,2]
[357569947,1744181442492,-500.0,0.00019178,2]
[357569948,1744181442501,-500.0,0.00019178,2]
[357569949,1744181442510,-500.0,0.00019178,2]
[357569950,1744181442520,-197.5434689,0.00019178,2]
[357569952,1744181442529,-500.0,0.00019178,2]
[357569953,1744181442539,-206.313335,0.00019178,2]
[357569954,1744181442549,-206.313335,0.00019178,2]
[357569955,1744181442559,-206.313335,0.00019178,2]
[357569956,1744181442568,-1428.66,0.00019178,2]
[357569958,1744181442578,-500.0,0.00019178,2]
[357569959,1744181442588,-206.313335,0.00019178,2]
[357569960,1744181442598,-206.313335,0.00019178,2]
[357569961,1744181442607,-206.313335,0.00019178,2]
[357569962,1744181442616,-1032.57,0.00019178,2]
[357569964,1744181442626,-206.313335,0.00019178,2]
[357569965,1744181442635,-591.15,0.00019178,2]
[357569966,1744181442644,-206.313335,0.00019178,2]
[357569967,1744181442653,-206.313335,0.00019178,2]
[357569968,1744181442662,-206.313335,0.00019178,2]
[357569970,1744181442672,-206.313335,0.00019178,2]
[357569971,1744181442681,-206.313335,0.00019178,2]
[357569972,1744181442691,-206.313335,0.00019178,2]
[357569973,1744181442700,-206.313335,0.00019178,2]
[357569974,1744181442709,-206.313335,0.00019178,2]
[357569976,1744181442719,-525.50663964,0.00019178,2]
[357569977,1744181442728,-206.313335,0.00019178,2]
[357569978,1744181442738,-206.313335,0.00019178,2]
[357569979,1744181442748,-512.37950378,0.00019178,2]
[357569980,1744181442758,-206.313335,0.00019178,2]
[357569982,1744181442767,-206.313335,0.00019178,2]
[357569983,1744181442777,-206.31334071,0.00019178,2]
[357569984,1744181442786,-500.0,0.00019178,2]
[357569985,1744181442795,-500.0,0.00019178,2]
[357569986,1744181442805,-500.0,0.00019178,2]
[357569988,1744181442814,-500.0,0.00019178,2]
[357569989,1744181442823,-500.0,0.00019178,2]
[357569990,1744181442833,-508.47391836,0.00019178,2]
[357569991,1744181442842,-1776.88,0.00019178,2]
[357569992,1744181442852,-1561.04,0.00019178,2]
[357569994,1744181442861,-500.0,0.00019178,2]
[357569995,1744181442870,-500.0,0.00019178,2]
[357569996,1744181442880,-500.0,0.00019178,2]
[357569997,1744181442889,-500.0,0.00019178,2]
[357569998,1744181442899,-500.0,0.00019178,2]
[357570000,1744181442909,-500.0,0.00019178,2]
[357570001,1744181442918,-856.97,0.00019178,2]
[357570002,1744181442927,-500.0,0.00019178,2]
[357570003,1744181442936,-500.0,0.00019178,2]
[357570005,1744181442946,-1986.86,0.00019178,2]
[357570006,1744181442955,-2611.41,0.00019178,2]
[357570007,1744181442964,-507.68418271,0.00019178,2]
[357570008,1744181442973,-500.0,0.00019178,2]
[357570009,1744181442982,-502.48223676,0.00019178,2]
[357570011,1744181442991,-500.0,0.00019178,2]
[357570012,1744181443001,-505.88712948,0.00019178,2]
[357570013,1744181443010,-500.0,0.00019178,2]
[357570014,1744181443019,-500.0,0.00019178,2]
[357570015,1744181443028,-500.0,0.00019178,2]
[357570017,1744181443038,-588.2408167,0.00019178,2]
[357570018,1744181443047,-500.0,0.00019178,2]
[357570019,1744181443057,-500.0,0.00019178,2]
[357570020,1744181443066,-505.59132934,0.00019178,2]
[357570021,1744181443075,-500.0,0.00019178,2]
[357570023,1744181443084,-500.0,0.00019178,2]
[357570024,1744181443094,-332.36739831,0.0001918,2]
[357570025,1744181443105,-250.0,0.00019182,2]
[357570026,1744181443115,-332.36739831,0.0001923,2]
[357570028,1744181443124,-332.36739831,0.00019281,2]
[357570029,1744181443135,-151.0,0.00019359,2]
[357570030,1744181443144,-151.0,0.0001936,2]
[357570031,1744181443154,-200.0,0.0001936,2]
[357570033,1744181443164,-3005.67,0.00019368,2]
[357570034,1744181443174,-500.0,0.00019369,2]
[357570036,1744181443185,-3460.34,0.00019369,2]
[357570038,1744181443194,-517.4504,0.00019369,2]
[357570039,1744181443203,-500.0,0.00019369,2]
[357570041,1744181443212,-2456.33,0.00019369,2]
[357570042,1744181443222,-1446.218721,0.00019369,2]
[357570043,1744181443231,-1446.218721,0.00019369,2]
[357570044,1744181443240,-500.0,0.00019369,2]
[357570046,1744181443249,-938.94,0.00019369,2]
[357570047,1744181443258,-151.0,0.00019369,2]
[357570048,1744181443267,-3005.67,0.0001937,2]
[357570049,1744181443277,-3005.67,0.0001937,2]
[357570052,1744181443286,-3005.67,0.0001937,2]
[357570055,1744181443295,-500.0,0.00019371,2]
[357570056,1744181443305,-500.0,0.00019371,2]
[357570057,1744181443314,-500.0,0.00019371,2]
[357570058,1744181443323,-500.0,0.00019371,2]
[357570060,1744181443333,-500.0,0.00019371,2]
[357570061,1744181443342,-3460.34,0.00019371,2]
[357570062,1744181443351,-3460.34,0.00019371,2]
[357570063,1744181443361,-3460.34,0.00019371,2]
[357570065,1744181443371,-3460.34,0.00019371,2]
[357570066,1744181443380,-3460.34,0.00019371,2]
[357570067,1744181443389,-500.0,0.00019371,2]
[357570068,1744181443399,-500.0,0.00019371,2]
[357570069,1744181443408,-500.0,0.00019371,2]
[357570071,1744181443419,-500.0,0.00019371,2]
[357570076,1744181443516,-500.0,0.00019371,2]
[357570077,1744181443526,-2456.33,0.00019371,2]
[357570078,1744181443535,-2456.33,0.00019371,2]
[357570079,1744181443545,-2456.33,0.00019371,2]
[357570080,1744181443555,-2456.33,0.00019371,2]
[357570081,1744181443564,-2456.33,0.00019371,2]
[357570082,1744181443574,-1446.218721,0.00019371,2]
[357570083,1744181443583,-1446.218721,0.00019371,2]
[357570084,1744181443593,-1446.218721,0.00019371,2]
[357570085,1744181443602,-1446.218721,0.00019371,2]
[357570086,1744181443612,-1446.218721,0.00019371,2]
[357570087,1744181443621,-1446.218721,0.00019371,2]
[357570088,1744181443631,-1446.218721,0.00019371,2]
[357570089,1744181443641,-1446.218721,0.00019371,2]
[357570090,1744181443650,-1446.218721,0.00019371,2]
[357570091,1744181443660,-1446.218721,0.00019371,2]
[357570092,1744181443670,-1456.97,0.00019371,2]
[357570093,1744181443680,-931.71,0.00019371,2]
[357570094,1744181443690,-500.0,0.00019371,2]
[357570095,1744181443699,-500.0,0.00019371,2]
[357570096,1744181443708,-500.0,0.00019371,2]
[357570097,1744181443718,-500.0,0.00019371,2]
[357570098,1744181443727,-500.0,0.00019371,2]
[357570099,1744181443737,-500.0,0.00019371,2]
[357570100,1744181443747,-1365.47,0.00019371,2]
[357570101,1744181443756,-938.94,0.00019371,2]
[357570102,1744181443766,-500.0,0.00019371,2]
[357570103,1744181443775,-938.94,0.00019371,2]
[357570104,1744181443785,-938.94,0.00019371,2]
[357570105,1744181443794,-938.94,0.00019371,2]
[357570106,1744181443803,-938.94,0.00019371,2]
[357570107,1744181443812,-500.0,0.00019371,2]
[357570108,1744181443822,-500.0,0.00019371,2]
[357570109,1744181443832,-935.45,0.00019371,2]
[357570110,1744181443841,-2491.6,0.00019371,2]
[357570111,1744181443851,-1632.18,0.00019371,2]
[357570112,1744181443860,-2220.63,0.00019371,2]
[357570113,1744181443869,-500.0,0.00019371,2]
[357570114,1744181443879,-5559.3,0.00019371,2]
[357570115,1744181443888,-1275.11,0.00019371,2]
[357570116,1744181443898,-501.41608696,0.00019371,2]
[357570117,1744181443907,-3005.67,0.00019371,2]
[357570118,1744181443917,-3005.67,0.00019371,2]
[357570119,1744181443927,-3005.67,0.00019371,2]
[357570120,1744181443936,-3005.67,0.00019371,2]
[357570121,1744181443946,-3005.67,0.00019371,2]
[357570122,1744181443955,-3005.67,0.00019371,2]
[357570123,1744181443964,-3005.67,0.00019371,2]
[357570124,1744181443974,-500.0,0.00019372,2]
[357570125,1744181443984,-513.86315458,0.00019372,2]
[357570126,1744181443993,-531.99061395,0.00019372,2]
[357570127,1744181444002,-504.73867728,0.00019372,2]
[357570128,1744181444012,-504.00190277,0.00019372,2]